fUST/lending_fUST_20250802
["ID","MTS","AMOUNT","RATE_DAILY","PERIOD"]
[376769099,1754110246168,-460.0,0.00024657,10]
[376769100,1754110246178,-460.0,0.00024657,10]
[376769101,1754110246187,-460.0,0.00024657,10]
[376769102,1754110246197,-460.0,0.00024657,10]
[376769103,1754110246206,-294.42652839,0.00024657,10]
[376769104,1754110246215,-463.32022173,0.00024657,10]
[376769105,1754110246225,-182.19361052,0.00024657,10]
[376769106,1754110246235,-460.0,0.00024657,10]
[376769107,1754110246244,-460.0,0.00024657,10]
[376769108,1754110246253,-460.0,0.00024657,10]
[376769109,1754110246263,-460.0,0.00024657,10]
[376769110,1754110246272,-460.0,0.00024657,10]
[376769111,1754110246280,-460.0,0.00024657,10]
[376769112,1754110246290,-460.0,0.00024657,10]
[376769113,1754110246299,-460.0,0.00024657,10]
[376769114,1754110246308,-460.0,0.00024657,10]
[376769115,1754110246318,-460.0,0.00024657,10]
[376769116,1754110246327,-474.52798993,0.00024657,10]
[376769117,1754110246336,-460.0,0.00024657,10]
[376769118,1754110246346,-460.0,0.00024657,10]
[376769119,1754110246355,-460.0,0.00024657,10]
[376769120,1754110246364,-460.0,0.00024657,10]
[376769122,1754110246373,-460.0,0.00024657,10]
[376769123,1754110246383,-465.74067329,0.00024657,10]
[376769124,1754110246392,-312.16666667,0.00024657,10]
[376769125,1754110246401,-460.0,0.00024657,10]
[376769126,1754110246410,-460.0,0.00024657,10]
[376769127,1754110246419,-460.0,0.00024657,10]
[376769128,1754110246428,-466.93620294,0.00024657,10]
[376769129,1754110246437,-460.0,0.00024657,10]
[376769130,1754110246446,-460.0,0.00024657,10]
[376769131,1754110246455,-460.0,0.00024657,10]
[376769132,1754110246464,-460.0,0.00024657,10]
[376769133,1754110246473,-460.0,0.00024657,10]
[376769134,1754110246483,-460.0,0.00024657,10]
[376769135,1754110246492,-460.0,0.00024657,10]
[376769136,1754110246501,-460.0,0.00024657,10]
[376769137,1754110246510,-460.0,0.00024657,10]
[376769138,1754110246519,-992.21,0.00024657,10]
[376769139,1754110246528,-992.21,0.00024657,10]
[376769140,1754110246537,-992.21,0.00024657,10]
[376769141,1754110246547,-992.21,0.00024657,10]
[376769142,1754110246555,-460.0,0.00024657,10]
[376769143,1754110246564,-151.0,0.00024657,10]
[376769144,1754110246574,-460.0,0.00024657,10]
[376769145,1754110246582,-992.21,0.00024657,10]
[376769146,1754110246591,-460.0,0.00024657,10]
[376769147,1754110246600,-460.0,0.00024657,10]
[376769148,1754110246609,-151.0,0.00024657,10]
[376769149,1754110246618,-500.0,0.00024657,10]
[376769150,1754110246627,-460.75464779,0.00024657,10]
[376769151,1754110246636,-460.0,0.00024657,10]
[376769152,1754110246645,-460.0,0.00024657,10]
[376769153,1754110246655,-461.15475373,0.00024657,10]
[376769154,1754110246664,-460.0,0.00024657,10]
[376769155,1754110246673,-460.0,0.00024657,10]
[376769156,1754110246683,-461.4887685,0.00024657,10]
[376769157,1754110246693,-460.97512777,0.00024657,10]
[376769158,1754110246702,-460.43435871,0.00024657,10]
[376769159,1754110246711,-204.68214561,0.00024657,10]
[376769160,1754110246721,-460.0,0.00024657,10]
[376769161,1754110246731,-460.0,0.00024657,10]
[376769162,1754110246740,-460.0,0.00024657,10]
[376769163,1754110246749,-233.0457102,0.00024657,10]
[376769164,1754110246758,-460.0,0.00024657,10]
[376769165,1754110246768,-460.0,0.00024657,10]
[376769166,1754110246780,-460.0,0.00024657,10]
[376769167,1754110246789,-460.0,0.00024657,10]
[376769168,1754110246799,-460.0,0.00024657,10]
[376769169,1754110246808,-151.0,0.00024657,10]
[376769170,1754110246818,-460.0,0.00024657,10]
[376769171,1754110246827,-460.0,0.00024657,10]
[376769172,1754110246836,-460.0,0.00024657,10]
[376769173,1754110246846,-460.0,0.00024657,10]
[376769174,1754110246855,-460.0,0.00024657,10]
[376769175,1754110246868,-460.0,0.00024657,10]
[376769176,1754110246877,-460.0,0.00024657,10]
[376769177,1754110246886,-460.0,0.00024657,10]
[376769178,1754110246896,-460.0,0.00024657,10]
[376769179,1754110246905,-460.0,0.00024657,10]
[376769180,1754110246914,-460.0,0.00024657,10]
[376769181,1754110246923,-460.0,0.00024657,10]
[376769182,1754110246932,-460.0,0.00024657,10]
[376769183,1754110246942,-460.0,0.00024657,10]
[376769184,1754110246951,-460.0,0.00024657,10]
[376769185,1754110246960,-151.0,0.00024657,10]
[376769186,1754110246969,-151.0,0.00024657,10]
[376769187,1754110246979,-460.0,0.00024657,10]
[376769188,1754110246989,-460.0,0.00024657,10]
[376769189,1754110246998,-460.0,0.00024657,10]
[376769190,1754110247007,-460.0,0.00024657,10]
[376769191,1754110247017,-460.0,0.00024657,10]
[376769192,1754110247026,-460.0,0.00024657,10]
[376769193,1754110247035,-394.4877746,0.00024657,10]
[376769194,1754110247044,-182.3,0.00024657,10]
[376769195,1754110247053,-460.0,0.00024657,10]
[376769196,1754110247063,-477.66,0.00024657,10]
[376769197,1754110247072,-477.66,0.00024657,10]
[376769198,1754110247081,-477.66,0.00024657,10]
[376769199,1754110247091,-477.66,0.00024657,10]
[376769200,1754110247100,-460.0,0.00024657,10]
[376769201,1754110247110,-477.66,0.00024657,10]
[376769202,1754110247119,-460.0,0.00024657,10]
[376769203,1754110247128,-460.0,0.00024657,10]
[376769204,1754110247137,-460.0,0.00024657,10]
[376769205,1754110247146,-460.0,0.00024657,10]
[376769206,1754110247156,-460.0,0.00024657,10]
[376769207,1754110247165,-154.850966,0.00024657,7]
[376769208,1754110247174,-460.0,0.00024657,10]
[376769209,1754110247183,-460.0,0.00024657,10]
[376769210,1754110247192,-460.0,0.00024657,10]
[376769211,1754110247202,-460.0,0.00024657,10]
[376769212,1754110247211,-460.0,0.00024657,10]
[376769213,1754110247220,-460.0,0.00024657,10]
[376769214,1754110247230,-503.46774942,0.00024673,2]
[376769215,1754110247240,-500.0,0.00024673,2]
[376769216,1754110247250,-329.38568182,0.00024673,2]
[376769217,1754110247259,-499.82904034,0.000248,2]
[376769218,1754110247269,-156.26367628,0.00024899,2]
[376769219,1754110247279,-4223.11971294,0.000249,2]
[376769220,1754110247288,-151.0,0.00024931,10]
[376769221,1754110247297,-151.0,0.00024931,10]
[376769222,1754110247306,-500.0,0.00024931,10]
[376769223,1754110247315,-151.0,0.00024931,10]
[376769224,1754110247324,-151.0,0.00024931,10]
[376769225,1754110247333,-2111.55985647,0.0002498,2]
[376769226,1754110247342,-544.62062026,0.00024988,10]
[376769227,1754110247351,-992.21,0.00024988,10]
[376769228,1754110247361,-460.0,0.00024988,10]
[376769229,1754110247370,-477.66,0.00024988,10]
[376769230,1754110247379,-460.0,0.00024989,10]
[376769231,1754110247388,-460.0,0.00024989,10]
[376769232,1754110247398,-460.0,0.00024989,10]
[376769233,1754110247407,-460.0,0.00024989,10]
[376769234,1754110247416,-460.0,0.00024989,10]
[376769235,1754110247425,-460.0,0.00024989,10]
[376769236,1754110247434,-460.0,0.00024989,10]
[376769237,1754110247443,-460.0,0.00024989,10]
[376769238,1754110247452,-460.0,0.00024989,10]
[376769239,1754110247461,-460.0,0.00024989,10]
[376769240,1754110247470,-992.21,0.00024989,10]
[376769241,1754110247480,-992.21,0.00024989,10]
[376769242,1754110247489,-460.0,0.00024989,10]
[376769243,1754110247497,-477.66,0.00024989,10]
[376769244,1754110247506,-477.66,0.00024989,10]
[376769245,1754110247515,-151.0,0.0002499,7]
[376769246,1754110247525,-151.0,0.0002499,7]
[376769247,1754110247534,-151.0,0.0002499,7]
[376769248,1754110247543,-500.099507,0.0002499,7]
[376769249,1754110247551,-2111.55985647,0.0002499,2]
[376769250,1754110247560,-500.099507,0.0002499,7]
[376769251,1754110247570,-249.91452017,0.0002499,2]
[376769252,1754110247579,-460.0,0.00024999,10]
[376769253,1754110247587,-460.0,0.00024999,10]
[376769254,1754110247597,-460.0,0.00024999,10]
[376769255,1754110247605,-460.0,0.00024999,10]
[376769256,1754110247614,-460.0,0.00024999,10]
[376769257,1754110247624,-460.0,0.00024999,10]
[376769258,1754110247633,-460.0,0.00024999,10]
[376769259,1754110247642,-460.0,0.00024999,10]
[376769260,1754110247651,-460.0,0.00024999,10]
[376769261,1754110247659,-460.0,0.00024999,10]
[376769262,1754110247668,-460.0,0.00024999,10]
[376769263,1754110247677,-460.0,0.00024999,10]
[376769264,1754110247686,-460.0,0.00024999,10]
[376769265,1754110247695,-460.0,0.00024999,10]
[376769266,1754110247704,-460.0,0.00024999,10]
[376769267,1754110247713,-460.0,0.00024999,10]
[376769268,1754110247722,-992.21,0.00024999,10]
[376769269,1754110247732,-460.0,0.00024999,10]
[376769270,1754110247742,-460.0,0.00024999,10]
[376769271,1754110247752,-460.0,0.00024999,10]
[376769272,1754110247761,-477.66,0.00024999,10]
[376769273,1754110247773,-24888.98,0.00025,14]
[376769274,1754110247782,-151.0,0.00025,7]
[376769275,1754110247792,-151.0,0.00025,7]
[376769276,1754110247801,-151.0,0.00025,7]
[376769277,1754110247810,-500.099507,0.00025,7]
[376769278,1754110247821,-500.099507,0.00025,7]
[376769279,1754110247830,-160.0,0.00025,2]
[376769280,1754110247839,-217.70481271,0.00025205,10]
[376769281,1754110247848,-232.8530925,0.00025205,10]
[376769282,1754110247858,-500.0,0.00025205,10]
[376769283,1754110247867,-193.32028403,0.00025205,10]
[376769284,1754110247876,-460.0,0.00025289,10]
[376769285,1754110247885,-151.0,0.0002529,6]
[376769286,1754110247895,-500.0,0.00025479,10]
[376769287,1754110247904,-153.26375,0.0002548,7]
[376769288,1754110247912,-500.0,0.00025535,2]
[376769289,1754110247922,-260.0,0.00025548,2]
[376769290,1754110247931,-153.26375,0.00025642,15]
[376769291,1754110247940,-151.0,0.00025667,7]
[376769292,1754110247950,-500.0,0.00025753,10]
[376769293,1754110247959,-200.0,0.00025805,15]
[376769294,1754110247969,-200.0,0.00025805,15]
[376769295,1754110247979,-200.0,0.00025805,15]
[376769296,1754110247989,-200.0,0.00025805,15]
[376769297,1754110247998,-200.0,0.00025805,15]
[376769298,1754110248007,-200.0,0.00025805,15]
[376769299,1754110248018,-200.0,0.00025805,15]
[376769300,1754110248027,-200.0,0.00025805,15]
[376769301,1754110248037,-358.0,0.00025805,15]
[376769302,1754110248046,-340.44,0.00026017,3]
[376769303,1754110248055,-500.0,0.00026027,10]
[376769304,1754110248065,-151.0,0.00026045,7]
[376769305,1754110248075,-423.14391007,0.0002618,2]
[376769306,1754110248084,-500.0,0.00026301,10]
[376769307,1754110248094,-460.0,0.00026412,10]
[376769308,1754110248103,-460.0,0.00026412,10]
[376769309,1754110248113,-460.0,0.00026412,10]
[376769310,1754110248122,-460.0,0.00026412,10]
[376769311,1754110248132,-432.49765321,0.00026412,10]
[376769312,1754110248141,-460.0,0.00026412,10]
[376769313,1754110248151,-460.0,0.00026412,10]
[376769314,1754110248160,-460.0,0.00026412,10]
[376769315,1754110248170,-460.0,0.00026412,10]
[376769316,1754110248179,-460.0,0.00026412,10]
[376769317,1754110248189,-460.0,0.00026412,10]
[376769318,1754110248199,-460.0,0.00026412,10]
[376769319,1754110248208,-460.0,0.00026412,10]
[376769320,1754110248217,-460.0,0.00026412,10]
[376769321,1754110248226,-460.0,0.00026412,10]
[376769322,1754110248236,-460.0,0.00026412,10]
[376769323,1754110248245,-151.0,0.00026423,7]
[376769324,1754110248254,-249.91452017,0.00026539,2]
[376769325,1754110248264,-460.0,0.00026548,10]
[376769326,1754110248273,-460.0,0.00026548,10]
[376769327,1754110248282,-460.0,0.00026548,10]
[376769328,1754110248292,-992.21,0.00026548,10]
[376769329,1754110248301,-477.66,0.00026548,10]
[376769330,1754110248311,-460.0,0.00026549,10]
[376769331,1754110248320,-460.0,0.00026549,10]
[376769332,1754110248329,-460.0,0.00026549,10]
[376769333,1754110248338,-460.0,0.00026549,10]
[376769334,1754110248347,-460.0,0.00026549,10]
[376769335,1754110248356,-460.0,0.00026549,10]
[376769336,1754110248365,-460.0,0.00026549,10]
[376769337,1754110248375,-151.0,0.00026549,7]
[376769338,1754110248384,-460.0,0.00026549,10]
[376769339,1754110248394,-460.0,0.00026549,10]
[376769340,1754110248403,-485.74593034,0.00026549,10]
[376769341,1754110248412,-460.0,0.00026549,10]
[376769342,1754110248421,-460.0,0.00026549,10]
[376769343,1754110248430,-460.0,0.00026549,10]
[376769344,1754110248439,-460.0,0.00026549,10]
[376769345,1754110248449,-460.0,0.00026549,10]
[376769346,1754110248458,-460.0,0.00026549,10]
[376769347,1754110248467,-460.0,0.00026549,10]
[376769348,1754110248476,-213.23,0.00026549,10]
[376769349,1754110248485,-460.0,0.00026549,10]
[376769350,1754110248495,-527.02465094,0.00026549,10]
[376769351,1754110248504,-460.0,0.00026549,10]
[376769352,1754110248513,-460.0,0.00026549,10]
[376769353,1754110248522,-271.335533,0.00026549,7]
[376769354,1754110248531,-500.099507,0.00026549,7]
[376769355,1754110248540,-500.099507,0.00026549,7]
[376769356,1754110248549,-460.0,0.00026549,10]
[376769357,1754110248558,-460.0,0.00026549,10]
[376769358,1754110248567,-460.0,0.00026549,10]
[376769359,1754110248576,-460.0,0.00026549,10]
[376769360,1754110248585,-460.0,0.00026549,10]
[376769361,1754110248689,-460.0,0.00026549,10]
[376769362,1754110248699,-460.0,0.00026549,10]
[376769363,1754110248709,-460.0,0.00026549,10]
[376769364,1754110248718,-460.0,0.00026549,10]
[376769365,1754110248728,-523.01687562,0.00026549,10]
[376769366,1754110248738,-460.0,0.00026549,10]
[376769367,1754110248748,-460.0,0.00026549,10]
[376769368,1754110248757,-460.0,0.00026549,10]
[376769369,1754110248768,-460.0,0.00026549,10]
[376769370,1754110248781,-500.0,0.00026575,10]
[376769371,1754110248791,-500.0,0.00026575,10]
[376769372,1754110248800,-500.0,0.00026575,10]
[376769373,1754110248809,-500.0,0.00026575,10]
[376769374,1754110248819,-500.0,0.00026575,10]
[376769375,1754110248828,-500.0,0.00026575,10]
[376769376,1754110248838,-500.0,0.00026575,10]
[376769377,1754110248850,-500.0,0.00026575,10]
[376769378,1754110248859,-500.0,0.00026575,10]
[376769379,1754110248868,-500.0,0.00026575,10]
[376769380,1754110248878,-591.88,0.00026575,10]
[376769381,1754110248888,-153.26375,0.00026589,20]
[376769382,1754110248902,-2111.55985647,0.00026769,2]
[376769383,1754110248911,-460.0,0.00026778,10]
[376769384,1754110248920,-460.0,0.00026778,10]
[376769385,1754110248930,-460.0,0.00026778,10]
[376769386,1754110248939,-460.0,0.00026798,10]
[376769387,1754110248949,-992.21,0.00026798,10]
[376769388,1754110248959,-477.66,0.00026798,10]
[376769389,1754110248975,-500.099507,0.00026799,7]
[376769390,1754110248984,-500.099507,0.00026799,7]
[376769391,1754110248994,-151.0,0.000268,7]
[376769392,1754110249003,-2111.55985647,0.00026869,2]
[376769393,1754110249013,-460.0,0.00026878,10]
[376769394,1754110249022,-460.0,0.00026878,10]
[376769395,1754110249031,-460.0,0.00026878,10]
[376769396,1754110249041,-460.0,0.00026878,10]
[376769397,1754110249051,-460.0,0.00026878,10]
[376769398,1754110249060,-460.0,0.00026878,10]
[376769399,1754110249070,-992.21,0.00026878,10]
[376769400,1754110249080,-992.21,0.00026878,10]
[376769401,1754110249089,-477.66,0.00026878,10]
[376769402,1754110249099,-477.66,0.00026878,10]
[376769403,1754110249108,-500.099507,0.00026879,7]
[376769404,1754110249118,-500.099507,0.00026879,7]
[376769405,1754110249128,-437.79575656,0.00026888,2]
[376769406,1754110249137,-500.0,0.00026888,2]
[376769407,1754110249146,-500.0,0.00026888,2]
[376769408,1754110249156,-500.0,0.00026888,2]
[376769409,1754110249168,-500.0,0.00026888,2]
[376769410,1754110249178,-500.0,0.00026888,2]
[376769411,1754110249187,-500.0,0.00026888,2]
[376769412,1754110249197,-500.0,0.00026888,2]
[376769413,1754110249207,-500.0,0.00026888,2]
[376769414,1754110249216,-500.0,0.00026888,2]
[376769415,1754110249226,-500.0,0.00026888,2]
[376769416,1754110249235,-500.0,0.00026888,2]
[376769417,1754110249245,-500.0,0.00026888,2]
[376769418,1754110249255,-500.0,0.00026888,2]
[376769419,1754110249264,-500.0,0.00026888,2]
[376769420,1754110249274,-460.0,0.00026889,10]
[376769421,1754110249283,-460.0,0.00026889,10]
[376769422,1754110249293,-460.0,0.00026889,10]
[376769423,1754110249303,-460.0,0.00026889,10]
[376769424,1754110249312,-460.0,0.00026889,10]
[376769425,1754110249321,-460.0,0.00026889,10]
[376769426,1754110249330,-460.0,0.00026889,10]
[376769427,1754110249339,-460.0,0.00026889,10]
[376769428,1754110249349,-460.0,0.00026889,10]
[376769429,1754110249358,-460.0,0.00026889,10]
[376769430,1754110249367,-460.0,0.00026889,10]
[376769431,1754110249377,-460.0,0.00026889,10]
[376769432,1754110249386,-460.0,0.00026889,10]
[376769433,1754110249397,-460.0,0.00026889,10]
[376769434,1754110249406,-460.0,0.00026889,10]
[376769435,1754110249415,-992.21,0.00026889,10]
[376769436,1754110249425,-460.0,0.00026889,10]
[376769437,1754110249434,-460.0,0.00026889,10]
[376769438,1754110249443,-477.66,0.00026889,10]
[376769439,1754110249453,-4567.24828112,0.0002689,2]
[376769440,1754110249462,-249.91452017,0.00026941,2]
[376769441,1754110249471,-219.10237441,0.00026951,10]
[376769442,1754110249480,-460.0,0.00026951,10]
[376769443,1754110249489,-383.32,0.00026951,10]
[376769444,1754110249498,-460.0,0.00026951,10]
[376769445,1754110249507,-460.0,0.00026951,10]
[376769446,1754110249517,-460.0,0.00026951,10]
[376769447,1754110249528,-460.0,0.00026951,10]
[376769448,1754110249538,-460.0,0.00026951,10]
[376769449,1754110249547,-460.0,0.00026951,10]
[376769450,1754110249557,-460.0,0.00026951,10]
[376769451,1754110249566,-460.0,0.00026951,10]
[376769452,1754110249575,-460.0,0.00026951,10]
[376769453,1754110249584,-460.0,0.00026951,10]
[376769454,1754110249593,-460.0,0.00026951,10]
[376769455,1754110249602,-248.83,0.00026951,10]
[376769456,1754110249612,-500.099507,0.00026951,7]
[376769457,1754110249620,-500.099507,0.00026951,7]
[376769458,1754110249630,-322.15273045,0.00026951,10]
[376769459,1754110249639,-460.0,0.00026951,10]
[376769460,1754110249648,-151.0,0.00026952,7]
[376769461,1754110249656,-153.689222,0.00026952,7]
[376769462,1754110249665,-151.0,0.00026952,7]
[376769463,1754110249674,-460.0,0.00026958,10]
[376769464,1754110249683,-460.0,0.00026958,10]
[376769465,1754110249692,-2111.55985647,0.00026959,2]
[376769466,1754110249701,-4223.11971294,0.0002696,2]
[376769467,1754110249710,-312.75,0.00026964,3]
[376769468,1754110249719,-460.0,0.00026967,10]
[376769469,1754110249728,-460.0,0.00026967,10]
[376769470,1754110249738,-460.0,0.00026967,10]
[376769471,1754110249747,-2111.55985647,0.00026968,2]
[376769472,1754110249756,-187.86,0.00026968,10]
[376769473,1754110249766,-460.0,0.00026968,10]
[376769474,1754110249778,-460.0,0.00026968,10]
[376769475,1754110249787,-460.0,0.00026968,10]
[376769476,1754110249796,-486.73,0.00026968,10]
[376769477,1754110249807,-992.21,0.00026968,10]
[376769478,1754110249818,-992.21,0.00026968,10]
[376769479,1754110249828,-992.21,0.00026968,10]
[376769480,1754110249837,-477.66,0.00026968,10]
[376769481,1754110249848,-2111.55985647,0.00026968,2]
[376769482,1754110249858,-249.91452017,0.00026968,2]
[376769483,1754110249867,-2111.55985647,0.00026969,2]
[376769484,1754110249876,-249.91452017,0.00026969,2]
[376769485,1754110249885,-151.0,0.00026969,7]
[376769486,1754110249894,-500.099507,0.00026969,7]
[376769487,1754110249903,-500.099507,0.00026969,7]
[376769488,1754110249913,-460.0,0.00026969,10]
[376769489,1754110249922,-460.0,0.00026969,10]
[376769490,1754110249932,-156.31,0.00026969,10]
[376769491,1754110249942,-992.21,0.00026969,10]
[376769492,1754110249951,-992.21,0.00026969,10]
[376769493,1754110249960,-992.21,0.00026969,10]
[376769494,1754110249969,-992.21,0.00026969,10]
[376769495,1754110249978,-992.21,0.00026969,10]
[376769496,1754110249988,-992.21,0.00026969,10]
[376769497,1754110249998,-992.36,0.00026969,10]
[376769498,1754110250007,-2111.55985647,0.00026969,2]
[376769499,1754110250017,-2111.55985647,0.0002697,2]
[376769500,1754110250026,-500.099507,0.0002697,7]
[376769501,1754110250035,-500.099507,0.0002697,7]
[376769502,1754110250045,-249.91452017,0.0002697,2]
[376769503,1754110250054,-460.0,0.00026972,10]
[376769504,1754110250064,-460.0,0.00026972,10]
[376769505,1754110250074,-460.0,0.00026972,10]
[376769506,1754110250084,-460.0,0.00026972,10]
[376769507,1754110250093,-198.07,0.00026972,10]
[376769508,1754110250104,-276.05333172,0.00026972,10]
[376769509,1754110250115,-460.0,0.00026972,10]
[376769510,1754110250126,-460.0,0.00026972,10]
[376769511,1754110250135,-460.0,0.00026972,10]
[376769512,1754110250144,-289.44178756,0.00026973,2]
[376769513,1754110250154,-330.68007487,0.00026973,2]
[376769514,1754110250163,-502.19081626,0.00026973,2]
[376769515,1754110250172,-565.14258058,0.00026973,2]
[376769516,1754110250181,-502.50049485,0.00026973,2]
[376769517,1754110250191,-460.0,0.00026978,10]
[376769518,1754110250200,-460.0,0.00026978,10]
[376769519,1754110250209,-460.0,0.00026978,10]
[376769520,1754110250218,-460.0,0.00026978,10]
[376769521,1754110250227,-460.0,0.00026978,10]
[376769522,1754110250237,-460.0,0.00026978,10]
[376769523,1754110250246,-460.0,0.00026978,10]
[376769524,1754110250255,-460.0,0.00026978,10]
[376769525,1754110250263,-460.0,0.00026978,10]
[376769526,1754110250273,-460.0,0.00026978,10]
[376769527,1754110250282,-460.0,0.00026978,10]
[376769528,1754110250291,-460.0,0.00026978,10]
[376769529,1754110250299,-460.0,0.00026978,10]
[376769530,1754110250308,-460.0,0.00026978,10]
[376769531,1754110250317,-500.099507,0.00026978,7]
[376769532,1754110250326,-500.099503,0.00026978,7]
[376769533,1754110250335,-406.92035075,0.00026978,10]
[376769534,1754110250344,-460.0,0.00026978,10]
[376769535,1754110250354,-455.89,0.00026978,10]
[376769536,1754110250363,-460.0,0.00026978,10]
[376769537,1754110250373,-371.59,0.00026978,10]
[376769538,1754110250382,-460.0,0.00026978,10]
[376769539,1754110250391,-460.0,0.00026978,10]
[376769540,1754110250400,-460.0,0.00026978,10]
[376769541,1754110250410,-160.77,0.00026978,10]
[376769542,1754110250419,-460.0,0.00026978,10]
[376769543,1754110250428,-460.0,0.00026978,10]
[376769544,1754110250437,-460.0,0.00026978,10]
[376769545,1754110250447,-460.0,0.00026978,10]
[376769546,1754110250456,-151.0,0.00026979,7]
[376769547,1754110250465,-151.0,0.00026979,7]
[376769548,1754110250474,-151.0,0.00026979,7]
[376769549,1754110250483,-460.0,0.00026979,10]
[376769550,1754110250492,-460.0,0.00026979,10]
[376769551,1754110250501,-528.06339222,0.00026979,10]
[376769552,1754110250510,-545.48434535,0.00026979,10]
[376769553,1754110250519,-460.0,0.00026979,10]
[376769554,1754110250528,-460.0,0.00026979,10]
[376769555,1754110250536,-288.97820932,0.00026979,10]
[376769556,1754110250545,-460.0,0.00026979,10]
[376769557,1754110250554,-460.0,0.00026979,10]
[376769558,1754110250563,-460.0,0.00026979,10]
[376769559,1754110250572,-268.64,0.00026979,10]
[376769560,1754110250581,-460.0,0.00026979,10]
[376769561,1754110250590,-460.0,0.00026979,10]
[376769562,1754110250599,-460.0,0.00026979,10]
[376769563,1754110250608,-482.84,0.00026979,10]
[376769564,1754110250617,-151.0,0.00026979,7]
[376769565,1754110250626,-151.0,0.00026979,7]
[376769566,1754110250635,-460.0,0.00026979,10]
[376769567,1754110250644,-460.0,0.00026979,10]
[376769568,1754110250653,-460.0,0.00026979,10]
[376769569,1754110250662,-460.0,0.00026979,10]
[376769570,1754110250671,-460.0,0.00026979,10]
[376769571,1754110250680,-460.0,0.00026979,10]
[376769572,1754110250689,-436.45,0.00026979,10]
[376769573,1754110250699,-460.0,0.00026979,10]
[376769574,1754110250707,-460.0,0.00026979,10]
[376769575,1754110250717,-460.0,0.00026979,10]
[376769576,1754110250726,-460.0,0.00026979,10]
[376769577,1754110250735,-460.0,0.00026979,10]
[376769578,1754110250744,-460.0,0.00026979,10]
[376769579,1754110250753,-460.0,0.00026979,10]
[376769580,1754110250762,-460.0,0.00026979,10]
[376769581,1754110250773,-583.29,0.00026979,10]
[376769582,1754110250782,-460.0,0.00026979,10]
[376769583,1754110250791,-529.2427511,0.00026979,10]
[376769584,1754110250800,-460.0,0.00026979,10]
[376769585,1754110250809,-460.0,0.00026979,10]
[376769586,1754110250821,-460.0,0.00026979,10]
[376769587,1754110250830,-238.76938322,0.00026979,10]
[376769588,1754110250839,-460.0,0.00026979,10]
[376769589,1754110250848,-460.0,0.00026979,10]
[376769590,1754110250858,-460.0,0.00026979,10]
[376769591,1754110250867,-460.0,0.00026979,10]
[376769592,1754110250875,-443.97,0.00026979,10]
[376769593,1754110250885,-460.0,0.00026979,10]
[376769594,1754110250894,-460.0,0.00026979,10]
[376769595,1754110250903,-460.0,0.00026979,10]
[376769596,1754110250912,-460.0,0.00026979,10]
[376769597,1754110250921,-198.22,0.00026979,10]
[376769598,1754110250931,-460.0,0.00026979,10]
[376769599,1754110250943,-460.0,0.00026979,10]